[Event "Late-Titled-Tuesday-Blitz-February-27-2024"]
[Site "Chess.com"]
[Date "2024.02.27"]
[Round "2"]
[White "olawsson"]
[Black "KorolDimitriy75"]
[Result "0-1"]
[WhiteElo "2124"]
[BlackElo "2437"]
[TimeControl "180+1"]
[EndTime "14:14:18 PST"]
[Termination "KorolDimitriy75 won by resignation"]

1. d4 {[%clk 0:03:00.9]} 1... Nf6 {[%clk 0:02:59.7]} 2. c4 {[%clk 0:02:58.1]}
2... c5 {[%clk 0:03:00]} 3. d5 {[%clk 0:02:57.1]} 3... b5 {[%clk 0:03:00.3]} 4.
cxb5 {[%clk 0:02:53.7]} 4... a6 {[%clk 0:03:00.5]} 5. b6 {[%clk 0:02:54.4]} 5...
d6 {[%clk 0:03:00.8]} 6. Nc3 {[%clk 0:02:54.9]} 6... Nbd7 {[%clk 0:03:01.1]} 7.
Nf3 {[%clk 0:02:55.2]} 7... g6 {[%clk 0:03:01.7]} 8. a4 {[%clk 0:02:54.9]} 8...
a5 {[%clk 0:03:01.1]} 9. e4 {[%clk 0:02:53.6]} 9... Bg7 {[%clk 0:03:01.1]} 10.
Bb5 {[%clk 0:02:49.5]} 10... O-O {[%clk 0:03:01]} 11. Qe2 {[%clk 0:02:49.4]}
11... Nxb6 {[%clk 0:03:00.6]} 12. Nd2 {[%clk 0:02:47.1]} 12... e6 {[%clk
0:03:00.4]} 13. dxe6 {[%clk 0:02:33.8]} 13... Bxe6 {[%clk 0:03:01.3]} 14. O-O
{[%clk 0:02:32.2]} 14... d5 {[%clk 0:03:00.4]} 15. exd5 {[%clk 0:02:13.8]} 15...
Nfxd5 {[%clk 0:03:01.3]} 16. Nxd5 {[%clk 0:02:11]} 16... Bxd5 {[%clk 0:02:40.3]}
17. Ra3 {[%clk 0:01:50.6]} 17... Qf6 {[%clk 0:02:28.8]} 18. Re1 {[%clk
0:01:44.5]} 18... Rfd8 {[%clk 0:02:17.4]} 19. Nf3 {[%clk 0:01:42.4]} 19... h6
{[%clk 0:02:11.4]} 20. h3 {[%clk 0:01:30.1]} 20... Kh7 {[%clk 0:02:10.5]} 21.
Ne5 {[%clk 0:01:20.9]} 21... Ra7 {[%clk 0:01:54.6]} 22. Nc6 {[%clk 0:01:10.3]}
22... Bxc6 {[%clk 0:01:52.9]} 23. Bxc6 {[%clk 0:01:07.3]} 23... Qxc6 {[%clk
0:01:53.8]} 0-1

[Event "Late-Titled-Tuesday-Blitz-February-27-2024"]
[Site "Chess.com"]
[Date "2024.02.27"]
[Round "2"]
[White "Hikaru"]
[Black "manitodeplomo"]
[Result "1-0"]
[WhiteElo "3231"]
[BlackElo "2665"]
[TimeControl "180+1"]
[EndTime "14:14:28 PST"]
[Termination "Hikaru won by resignation"]

1. h3 {[%clk 0:03:00.9]} 1... d5 {[%clk 0:02:50.7]} 2. d4 {[%clk 0:03:00.6]}
2... Nf6 {[%clk 0:02:43.4]} 3. Bf4 {[%clk 0:03:00.3]} 3... e6 {[%clk 0:02:42.3]}
4. e3 {[%clk 0:02:58.3]} 4... Be7 {[%clk 0:02:43.2]} 5. c4 {[%clk 0:02:58.4]}
5... O-O {[%clk 0:02:42.6]} 6. Nc3 {[%clk 0:02:58.8]} 6... b6 {[%clk 0:02:35.7]}
7. cxd5 {[%clk 0:02:58.3]} 7... Nxd5 {[%clk 0:02:33.7]} 8. Nxd5 {[%clk
0:02:58.7]} 8... Qxd5 {[%clk 0:02:34.4]} 9. Ne2 {[%clk 0:02:58.9]} 9... Ba6
{[%clk 0:02:32.6]} 10. Nc3 {[%clk 0:02:59.3]} 10... Qa5 {[%clk 0:02:31.6]} 11.
Bxc7 {[%clk 0:02:57.2]} 11... Rc8 {[%clk 0:02:29.9]} 12. Bxa6 {[%clk 0:02:52.5]}
12... Nxa6 {[%clk 0:02:18.3]} 13. Be5 {[%clk 0:02:52.3]} 13... Ba3 {[%clk
0:02:13.3]} 14. Qg4 {[%clk 0:02:27.1]} 14... g6 {[%clk 0:02:04.8]} 15. O-O
{[%clk 0:02:27.1]} 15... Be7 {[%clk 0:01:51.6]} 16. Qe2 {[%clk 0:02:21.8]} 16...
Nb4 {[%clk 0:01:51.1]} 17. a3 {[%clk 0:02:21]} 17... Nd5 {[%clk 0:01:51]} 18.
Nxd5 {[%clk 0:02:20.7]} 18... Qxd5 {[%clk 0:01:50.9]} 19. Rfc1 {[%clk
0:02:20.1]} 19... f6 {[%clk 0:01:49]} 20. Bg3 {[%clk 0:02:19.8]} 20... Qb3
{[%clk 0:01:43.5]} 21. Bc7 {[%clk 0:02:14.7]} 21... Kf7 {[%clk 0:01:16.5]} 22.
Rc3 {[%clk 0:02:14.1]} 22... Qd5 {[%clk 0:01:16.9]} 23. Rac1 {[%clk 0:02:14.5]}
23... b5 {[%clk 0:01:11]} 24. Ba5 {[%clk 0:02:11.4]} 24... Rxc3 {[%clk
0:01:07.2]} 25. Rxc3 {[%clk 0:02:12.3]} 25... Rb8 {[%clk 0:01:05.6]} 26. Rc7
{[%clk 0:02:10.3]} 26... Rb7 {[%clk 0:01:05.4]} 27. e4 {[%clk 0:02:08.8]} 1-0

[Event "Late-Titled-Tuesday-Blitz-February-27-2024"]
[Site "Chess.com"]
[Date "2024.02.27"]
[Round "2"]
[White "SpeedofLight0"]
[Black "NoHeThTo"]
[Result "1-0"]
[WhiteElo "3065"]
[BlackElo "2632"]
[TimeControl "180+1"]
[EndTime "14:14:29 PST"]
[Termination "SpeedofLight0 won by resignation"]

1. c4 {[%clk 0:02:36.8]} 1... Nf6 {[%clk 0:02:58.8]} 2. Nf3 {[%clk 0:02:35.3]}
2... g6 {[%clk 0:02:59.3]} 3. Nc3 {[%clk 0:02:34.2]} 3... Bg7 {[%clk 0:02:59.8]}
4. e4 {[%clk 0:02:34.2]} 4... d6 {[%clk 0:03:00.5]} 5. d4 {[%clk 0:02:33.9]}
5... O-O {[%clk 0:03:01.2]} 6. h3 {[%clk 0:02:33.2]} 6... e5 {[%clk 0:03:01.6]}
7. Be3 {[%clk 0:02:33.3]} 7... exd4 {[%clk 0:03:01.6]} 8. Nxd4 {[%clk
0:02:34.2]} 8... Re8 {[%clk 0:03:01.7]} 9. Bd3 {[%clk 0:02:34.6]} 9... c6 {[%clk
0:03:01]} 10. O-O {[%clk 0:02:34.4]} 10... Nbd7 {[%clk 0:03:00.7]} 11. Qc2
{[%clk 0:02:09.2]} 11... Nc5 {[%clk 0:02:59.2]} 12. Rad1 {[%clk 0:02:09.2]}
12... Nfd7 {[%clk 0:02:48.7]} 13. f4 {[%clk 0:02:04.6]} 13... Nxd3 {[%clk
0:02:46.4]} 14. Qxd3 {[%clk 0:02:03.5]} 14... Nc5 {[%clk 0:02:44.9]} 15. Qc2
{[%clk 0:02:03.5]} 15... Qh4 {[%clk 0:02:12]} 16. Nf3 {[%clk 0:02:00.6]} 16...
Qg3 {[%clk 0:02:08.4]} 17. Ne2 {[%clk 0:01:54.3]} 17... Nxe4 {[%clk 0:01:53.4]}
18. Nxg3 {[%clk 0:01:53.6]} 18... Nxg3 {[%clk 0:01:54.3]} 19. Rfe1 {[%clk
0:01:54]} 19... Bf5 {[%clk 0:01:54.4]} 20. Qb3 {[%clk 0:01:51.5]} 20... Re7
{[%clk 0:01:53.4]} 21. Bd4 {[%clk 0:01:46.7]} 21... Bxd4+ {[%clk 0:01:52.4]} 22.
Nxd4 {[%clk 0:01:46.9]} 22... Ne4 {[%clk 0:01:41.8]} 23. Nxf5 {[%clk 0:01:44]}
23... gxf5 {[%clk 0:01:42.7]} 24. Rxd6 {[%clk 0:01:41.6]} 24... Rae8 {[%clk
0:01:38.9]} 25. Rdd1 {[%clk 0:01:38.5]} 25... Kf8 {[%clk 0:01:38.2]} 26. Qa3
{[%clk 0:01:36.6]} 26... Kg8 {[%clk 0:01:37.7]} 27. Rd8 {[%clk 0:01:35]} 27...
Rxd8 {[%clk 0:01:37.5]} 28. Qxe7 {[%clk 0:01:34.9]} 28... Rd2 {[%clk 0:01:38.4]}
29. Qxb7 {[%clk 0:01:33.4]} 29... Kg7 {[%clk 0:01:36.7]} 30. Qxc6 {[%clk
0:01:32.1]} 30... Rxb2 {[%clk 0:01:36.6]} 31. Qd5 {[%clk 0:01:31.2]} 31... Rxa2
{[%clk 0:01:34.5]} 32. Qxf5 {[%clk 0:01:30.1]} 1-0

[Event "Late-Titled-Tuesday-Blitz-February-27-2024"]
[Site "Chess.com"]
[Date "2024.02.27"]
[Round "2"]
[White "ArturoCaceres"]
[Black "JosephRyan"]
[Result "1-0"]
[WhiteElo "2474"]
[BlackElo "2181"]
[TimeControl "180+1"]
[EndTime "14:14:32 PST"]
[Termination "ArturoCaceres won by resignation"]

1. b3 {[%clk 0:03:00.9]} 1... d5 {[%clk 0:02:52.4]} 2. Bb2 {[%clk 0:03:01.8]}
2... Nf6 {[%clk 0:02:51.3]} 3. Nf3 {[%clk 0:03:02.7]} 3... Bg4 {[%clk
0:02:47.8]} 4. e3 {[%clk 0:03:03.6]} 4... e6 {[%clk 0:02:47.4]} 5. Be2 {[%clk
0:03:03.9]} 5... Be7 {[%clk 0:02:41.1]} 6. Ne5 {[%clk 0:03:03.8]} 6... Bxe2
{[%clk 0:02:40.2]} 7. Qxe2 {[%clk 0:03:04.7]} 7... Nbd7 {[%clk 0:02:40.3]} 8. f4
{[%clk 0:03:05.1]} 8... O-O {[%clk 0:02:37.5]} 9. O-O {[%clk 0:03:05.1]} 9...
Nxe5 {[%clk 0:02:35.6]} 10. fxe5 {[%clk 0:03:05.3]} 10... Ne4 {[%clk 0:02:30.4]}
11. d3 {[%clk 0:03:01.8]} 11... Nc5 {[%clk 0:02:29.6]} 12. e4 {[%clk 0:02:51]}
12... d4 {[%clk 0:02:00.8]} 13. Qf2 {[%clk 0:02:49.6]} 13... Nd7 {[%clk
0:01:52.4]} 14. Bxd4 {[%clk 0:02:47.1]} 14... c5 {[%clk 0:01:36.4]} 15. Bb2
{[%clk 0:02:43.5]} 15... Qc7 {[%clk 0:01:36.9]} 16. Qg3 {[%clk 0:02:42.5]} 16...
f6 {[%clk 0:01:30.9]} 17. exf6 {[%clk 0:02:41.9]} 17... Qxg3 {[%clk 0:01:30.8]}
18. hxg3 {[%clk 0:02:42.3]} 18... Bxf6 {[%clk 0:01:24.1]} 19. Bxf6 {[%clk
0:02:42.1]} 19... Rxf6 {[%clk 0:01:23.9]} 20. Nd2 {[%clk 0:02:41.6]} 20... Raf8
{[%clk 0:01:21.3]} 21. Rxf6 {[%clk 0:02:37.6]} 21... gxf6 {[%clk 0:01:19.3]} 22.
Rf1 {[%clk 0:02:38.5]} 22... Ne5 {[%clk 0:01:18]} 23. Nc4 {[%clk 0:02:35]} 23...
Nxc4 {[%clk 0:01:17.6]} 24. bxc4 {[%clk 0:02:35.9]} 24... Kg7 {[%clk 0:01:17]}
25. Rb1 {[%clk 0:02:35.6]} 25... b6 {[%clk 0:01:16.8]} 26. Kf2 {[%clk
0:02:34.5]} 26... Rd8 {[%clk 0:01:12.2]} 27. a4 {[%clk 0:02:34.3]} 27... f5
{[%clk 0:01:11.1]} 28. exf5 {[%clk 0:02:32.4]} 28... exf5 {[%clk 0:01:11.5]} 29.
a5 {[%clk 0:02:32.9]} 29... Rd6 {[%clk 0:01:11.1]} 30. axb6 {[%clk 0:02:33.1]}
30... axb6 {[%clk 0:01:11.5]} 31. Kf3 {[%clk 0:02:31.8]} 31... Kf6 {[%clk
0:01:09.4]} 32. Rh1 {[%clk 0:02:32.1]} 32... Kg6 {[%clk 0:01:08.8]} 33. Re1
{[%clk 0:02:32.3]} 33... Rd4 {[%clk 0:00:59.5]} 34. Re6+ {[%clk 0:02:31.5]}
34... Kg5 {[%clk 0:00:59.3]} 35. Rxb6 {[%clk 0:02:32.1]} 35... h5 {[%clk
0:00:57.8]} 36. Rc6 {[%clk 0:02:31.9]} 36... h4 {[%clk 0:00:56.9]} 37. gxh4+
{[%clk 0:02:30.9]} 37... Rxh4 {[%clk 0:00:56]} 38. Rxc5 {[%clk 0:02:31]} 38...
Rf4+ {[%clk 0:00:56.5]} 39. Kg3 {[%clk 0:02:30]} 39... Rg4+ {[%clk 0:00:56.8]}
40. Kh2 {[%clk 0:02:29.1]} 1-0

[Event "Late-Titled-Tuesday-Blitz-February-27-2024"]
[Site "Chess.com"]
[Date "2024.02.27"]
[Round "2"]
[White "Rashad_Zeynalli"]
[Black "FairChess_on_YouTube"]
[Result "0-1"]
[WhiteElo "2650"]
[BlackElo "3110"]
[TimeControl "180+1"]
[EndTime "14:14:54 PST"]
[Termination "FairChess_on_YouTube won by resignation"]

1. e4 {[%clk 0:03:00.9]} 1... c5 {[%clk 0:02:59.5]} 2. Nf3 {[%clk 0:03:00.9]}
2... e6 {[%clk 0:03:00]} 3. d4 {[%clk 0:03:01.5]} 3... cxd4 {[%clk 0:03:00.9]}
4. Nxd4 {[%clk 0:03:02.1]} 4... Nc6 {[%clk 0:03:01.5]} 5. Nc3 {[%clk 0:03:02.6]}
5... a6 {[%clk 0:03:01.9]} 6. Be3 {[%clk 0:03:02.3]} 6... Nf6 {[%clk 0:03:01.5]}
7. Qd2 {[%clk 0:03:02.1]} 7... e5 {[%clk 0:03:00.9]} 8. Nb3 {[%clk 0:02:48.8]}
8... Bb4 {[%clk 0:02:59.7]} 9. f3 {[%clk 0:02:47.8]} 9... d5 {[%clk 0:02:54.1]}
10. exd5 {[%clk 0:02:39.5]} 10... Bxc3 {[%clk 0:02:42.8]} 11. bxc3 {[%clk
0:02:26.7]} 11... Qxd5 {[%clk 0:02:42.6]} 12. O-O-O {[%clk 0:02:18.7]} 12...
Qxd2+ {[%clk 0:02:42.2]} 13. Rxd2 {[%clk 0:02:19.3]} 13... O-O {[%clk
0:02:42.1]} 14. Nc5 {[%clk 0:02:09.6]} 14... Re8 {[%clk 0:02:41.5]} 15. Ne4
{[%clk 0:02:03.1]} 15... Nxe4 {[%clk 0:02:40.2]} 16. fxe4 {[%clk 0:02:04]} 16...
Be6 {[%clk 0:02:40.4]} 17. Kb2 {[%clk 0:01:47.4]} 17... Rac8 {[%clk 0:02:40.4]}
18. Be2 {[%clk 0:01:45.6]} 18... Na5 {[%clk 0:02:39.9]} 19. Bb6 {[%clk
0:01:38.2]} 19... Nc4+ {[%clk 0:02:38.9]} 20. Bxc4 {[%clk 0:01:38.6]} 20... Rxc4
{[%clk 0:02:39.5]} 21. Rhd1 {[%clk 0:01:30]} 21... h5 {[%clk 0:02:19.9]} 22. Rd8
{[%clk 0:01:29.2]} 22... Rxd8 {[%clk 0:02:19.6]} 23. Rxd8+ {[%clk 0:01:29.6]}
23... Kh7 {[%clk 0:02:20.3]} 24. Rb8 {[%clk 0:01:29.7]} 24... Rxe4 {[%clk
0:02:17.5]} 25. Rxb7 {[%clk 0:01:29.9]} 25... Re2 {[%clk 0:02:17.9]} 26. Bc7
{[%clk 0:01:28.3]} 26... f6 {[%clk 0:02:12.5]} 27. Rb6 {[%clk 0:01:25.6]} 27...
Bf5 {[%clk 0:02:12.4]} 28. Rxa6 {[%clk 0:01:23.2]} 28... Rxg2 {[%clk 0:02:11.3]}
29. a4 {[%clk 0:01:19]} 29... Rxh2 {[%clk 0:02:11.4]} 30. a5 {[%clk 0:01:18.4]}
30... h4 {[%clk 0:02:11.1]} 31. Rd6 {[%clk 0:01:16.6]} 31... h3 {[%clk
0:02:08.9]} 32. a6 {[%clk 0:01:14.1]} 32... Rxc2+ {[%clk 0:01:59.1]} 33. Kb3
{[%clk 0:01:14.3]} 33... h2 {[%clk 0:01:59.1]} 34. Rd1 {[%clk 0:01:13.2]} 34...
Rd2 {[%clk 0:01:59.2]} 35. Ra1 {[%clk 0:00:58]} 35... Be4 {[%clk 0:01:58.6]} 0-1

[Event "Late-Titled-Tuesday-Blitz-February-27-2024"]
[Site "Chess.com"]
[Date "2024.02.27"]
[Round "2"]
[White "lluiss"]
[Black "Matalon"]
[Result "0-1"]
[WhiteElo "2144"]
[BlackElo "2456"]
[TimeControl "180+1"]
[EndTime "14:14:54 PST"]
[Termination "Matalon won by resignation"]

1. Nf3 {[%clk 0:03:00.9]} 1... Nf6 {[%clk 0:02:58.9]} 2. d4 {[%clk 0:03:00]}
2... g6 {[%clk 0:02:59.3]} 3. c4 {[%clk 0:02:58.8]} 3... Bg7 {[%clk 0:02:59.8]}
4. Nc3 {[%clk 0:02:59]} 4... O-O {[%clk 0:03:00.4]} 5. g3 {[%clk 0:02:57]} 5...
d6 {[%clk 0:03:00.7]} 6. Bg2 {[%clk 0:02:57.4]} 6... Nc6 {[%clk 0:03:01.1]} 7.
O-O {[%clk 0:02:57.1]} 7... Bg4 {[%clk 0:03:01.7]} 8. h3 {[%clk 0:02:55.1]} 8...
Bxf3 {[%clk 0:03:01.5]} 9. Bxf3 {[%clk 0:02:55.4]} 9... Nd7 {[%clk 0:03:02]} 10.
Bxc6 {[%clk 0:02:54.5]} 10... bxc6 {[%clk 0:03:01.1]} 11. Be3 {[%clk 0:02:54.7]}
11... Rb8 {[%clk 0:03:00.9]} 12. b3 {[%clk 0:02:53.9]} 12... c5 {[%clk 0:03:01]}
13. Rc1 {[%clk 0:02:53.3]} 13... cxd4 {[%clk 0:02:47.2]} 14. Bxd4 {[%clk
0:02:52.9]} 14... Bxd4 {[%clk 0:02:46.2]} 15. Qxd4 {[%clk 0:02:52.2]} 15... Nc5
{[%clk 0:02:46.9]} 16. Nd5 {[%clk 0:02:45.4]} 16... c6 {[%clk 0:02:43.2]} 17.
Nc3 {[%clk 0:02:41.7]} 17... a5 {[%clk 0:02:39.3]} 18. Ne4 {[%clk 0:02:39.5]}
18... Nxe4 {[%clk 0:02:28.3]} 19. Qxe4 {[%clk 0:02:40.4]} 19... c5 {[%clk
0:02:28.4]} 20. h4 {[%clk 0:02:35.6]} 20... a4 {[%clk 0:02:22.9]} 21. Rc3 {[%clk
0:02:24.1]} 21... Qd7 {[%clk 0:02:02.5]} 22. h5 {[%clk 0:02:22]} 22... gxh5
{[%clk 0:01:53.5]} 23. Kg2 {[%clk 0:02:15.8]} 23... Qb7 {[%clk 0:01:46.1]} 24.
Qxb7 {[%clk 0:02:05.8]} 24... Rxb7 {[%clk 0:01:45.9]} 25. bxa4 {[%clk
0:02:05.8]} 25... Ra8 {[%clk 0:01:44.5]} 26. Rh1 {[%clk 0:02:05.6]} 26... Rxa4
{[%clk 0:01:42.5]} 27. Rxh5 {[%clk 0:02:04.1]} 27... Rxa2 {[%clk 0:01:41.6]} 28.
g4 {[%clk 0:01:59.6]} 28... Rxe2 {[%clk 0:01:35.1]} 29. Rch3 {[%clk 0:01:59.4]}
29... Rbb2 {[%clk 0:01:35.2]} 30. Rxh7 {[%clk 0:01:47.3]} 30... Rxf2+ {[%clk
0:01:34.9]} 31. Kg1 {[%clk 0:01:47.6]} 31... Rfc2 {[%clk 0:01:29.4]} 32. Rh8+
{[%clk 0:01:41.7]} 32... Kg7 {[%clk 0:01:29.4]} 33. R8h7+ {[%clk 0:01:36.3]}
33... Kf6 {[%clk 0:01:29]} 34. Rf3+ {[%clk 0:01:30.1]} 34... Kg6 {[%clk
0:01:28.3]} 35. Rhxf7 {[%clk 0:01:29.7]} 35... Rb1+ {[%clk 0:01:22.7]} 36. Rf1
{[%clk 0:01:29.2]} 36... Rxf1+ {[%clk 0:01:21.3]} 37. Rxf1 {[%clk 0:01:28.5]}
37... Rxc4 {[%clk 0:01:21.2]} 0-1

[Event "Late-Titled-Tuesday-Blitz-February-27-2024"]
[Site "Chess.com"]
[Date "2024.02.27"]
[Round "2"]
[White "Rud_Makarian"]
[Black "BabageldiAnnaberdiyev"]
[Result "1-0"]
[WhiteElo "3090"]
[BlackElo "2644"]
[TimeControl "180+1"]
[EndTime "14:15:04 PST"]
[Termination "Rud_Makarian won by resignation"]

1. d4 {[%clk 0:03:00.9]} 1... e6 {[%clk 0:03:00.9]} 2. c4 {[%clk 0:03:01]} 2...
f5 {[%clk 0:03:01]} 3. Nf3 {[%clk 0:03:00.6]} 3... Nf6 {[%clk 0:03:01.6]} 4. g3
{[%clk 0:03:00.6]} 4... d5 {[%clk 0:03:02]} 5. Bg2 {[%clk 0:03:01]} 5... c6
{[%clk 0:03:02.6]} 6. O-O {[%clk 0:03:00.2]} 6... Bd6 {[%clk 0:03:03.2]} 7. b3
{[%clk 0:03:00.7]} 7... Qe7 {[%clk 0:03:02.5]} 8. a4 {[%clk 0:03:01.3]} 8... a5
{[%clk 0:03:02]} 9. Ba3 {[%clk 0:03:01.8]} 9... Nbd7 {[%clk 0:03:02.7]} 10. Qc1
{[%clk 0:02:59.8]} 10... O-O {[%clk 0:03:02]} 11. Nc3 {[%clk 0:02:59.4]} 11...
Ne4 {[%clk 0:02:59.9]} 12. Bxd6 {[%clk 0:02:54.3]} 12... Qxd6 {[%clk 0:02:59.4]}
13. Qb2 {[%clk 0:02:54.1]} 13... b6 {[%clk 0:02:58.4]} 14. Rfc1 {[%clk
0:02:54.5]} 14... Bb7 {[%clk 0:02:58.2]} 15. cxd5 {[%clk 0:02:51.1]} 15... exd5
{[%clk 0:02:57.3]} 16. e3 {[%clk 0:02:51.4]} 16... Rac8 {[%clk 0:02:56.1]} 17.
Ne2 {[%clk 0:02:50.1]} 17... g6 {[%clk 0:02:51.2]} 18. Nf4 {[%clk 0:02:50]}
18... Rfe8 {[%clk 0:02:50.1]} 19. Nd3 {[%clk 0:02:47.1]} 19... c5 {[%clk
0:02:21]} 20. dxc5 {[%clk 0:02:44.8]} 20... Ndxc5 {[%clk 0:02:21.9]} 21. Nxc5
{[%clk 0:02:35.3]} 21... bxc5 {[%clk 0:02:20.9]} 22. Rd1 {[%clk 0:02:33.6]}
22... Qb6 {[%clk 0:02:16.9]} 23. Rac1 {[%clk 0:02:28.1]} 23... Rb8 {[%clk
0:01:59.8]} 24. Nd2 {[%clk 0:02:13.4]} 24... Rec8 {[%clk 0:01:41.4]} 25. Nxe4
{[%clk 0:02:12.6]} 25... fxe4 {[%clk 0:01:42.3]} 26. Bh3 {[%clk 0:02:07.1]}
26... Rc7 {[%clk 0:01:35.7]} 27. Qe5 {[%clk 0:02:06.9]} 27... Rd8 {[%clk
0:01:33.4]} 28. Be6+ {[%clk 0:02:05.4]} 28... Rf7 {[%clk 0:01:29.7]} 29. Bxf7+
{[%clk 0:02:00.2]} 29... Kxf7 {[%clk 0:01:30.6]} 30. h4 {[%clk 0:01:51.9]} 30...
Re8 {[%clk 0:01:14.7]} 31. Qf4+ {[%clk 0:01:50.1]} 31... Kg7 {[%clk 0:01:15]}
32. h5 {[%clk 0:01:49.2]} 32... gxh5 {[%clk 0:01:04.2]} 33. Qg5+ {[%clk
0:01:49.3]} 33... Qg6 {[%clk 0:01:03.9]} 34. Qxg6+ {[%clk 0:01:49.2]} 34... hxg6
{[%clk 0:01:04.8]} 35. Rxc5 {[%clk 0:01:49.6]} 35... Re7 {[%clk 0:01:04.8]} 36.
Rxa5 {[%clk 0:01:49.4]} 36... Kf6 {[%clk 0:01:04.6]} 37. Ra7 {[%clk 0:01:49.2]}
37... Ke5 {[%clk 0:01:01.9]} 38. b4 {[%clk 0:01:49.7]} 1-0

[Event "Late-Titled-Tuesday-Blitz-February-27-2024"]
[Site "Chess.com"]
[Date "2024.02.27"]
[Round "2"]
[White "OneTrickPony_82"]
[Black "ChessFanNM"]
[Result "1-0"]
[WhiteElo "2532"]
[BlackElo "2334"]
[TimeControl "180+1"]
[EndTime "14:15:04 PST"]
[Termination "OneTrickPony_82 won on time"]

1. d4 {[%clk 0:03:00.9]} 1... d5 {[%clk 0:00:32.7]} 2. c4 {[%clk 0:02:58]} 2...
e6 {[%clk 0:00:32.5]} 3. Nf3 {[%clk 0:02:57.6]} 3... Nf6 {[%clk 0:00:32.2]} 4.
Nc3 {[%clk 0:02:56.6]} 4... c5 {[%clk 0:00:32]} 5. cxd5 {[%clk 0:02:54.5]} 5...
cxd4 {[%clk 0:00:32]} 6. Qxd4 {[%clk 0:02:53.5]} 6... exd5 {[%clk 0:00:31.3]} 7.
e4 {[%clk 0:02:53.2]} 7... dxe4 {[%clk 0:00:28.1]} 8. Qxd8+ {[%clk 0:02:53.1]}
8... Kxd8 {[%clk 0:00:28.8]} 9. Ng5 {[%clk 0:02:53.2]} 9... Be6 {[%clk
0:00:27.9]} 10. Nxe6+ {[%clk 0:02:53.4]} 10... fxe6 {[%clk 0:00:28]} 11. Bc4
{[%clk 0:02:53.6]} 11... Bb4 {[%clk 0:00:21.1]} 12. Bxe6 {[%clk 0:02:42.9]}
12... Nc6 {[%clk 0:00:18.4]} 13. O-O {[%clk 0:02:31.9]} 13... Bxc3 {[%clk
0:00:16.9]} 14. bxc3 {[%clk 0:02:31.2]} 14... Re8 {[%clk 0:00:14.4]} 15. Rd1+
{[%clk 0:02:28.3]} 15... Ke7 {[%clk 0:00:11.9]} 16. Bb3 {[%clk 0:02:27.9]} 16...
Kf8 {[%clk 0:00:06.3]} 17. Ba3+ {[%clk 0:02:26.9]} 17... Ne7 {[%clk 0:00:06.2]}
18. Rd6 {[%clk 0:02:19.8]} 18... Rad8 {[%clk 0:00:04.3]} 19. Rad1 {[%clk
0:02:20.1]} 19... Rxd6 {[%clk 0:00:04]} 20. Rxd6 {[%clk 0:02:19.6]} 20... Rc8
{[%clk 0:00:02.8]} 21. Re6 {[%clk 0:02:12.7]} 21... Rc7 {[%clk 0:00:01.9]} 22.
Bd6 {[%clk 0:02:09.6]} 1-0

[Event "Late-Titled-Tuesday-Blitz-February-27-2024"]
[Site "Chess.com"]
[Date "2024.02.27"]
[Round "2"]
[White "TenisMaster"]
[Black "picturesquecheck"]
[Result "1-0"]
[WhiteElo "2936"]
[BlackElo "2421"]
[TimeControl "180+1"]
[EndTime "14:15:09 PST"]
[Termination "TenisMaster won by resignation"]

1. e4 {[%clk 0:03:00.9]} 1... c5 {[%clk 0:02:59.6]} 2. Nf3 {[%clk 0:03:00.8]}
2... d6 {[%clk 0:02:59.9]} 3. d4 {[%clk 0:03:00.8]} 3... cxd4 {[%clk 0:03:00.8]}
4. Nxd4 {[%clk 0:03:01.3]} 4... Nf6 {[%clk 0:03:01.1]} 5. Nc3 {[%clk 0:03:01.9]}
5... Nc6 {[%clk 0:03:01.5]} 6. Bg5 {[%clk 0:03:00.6]} 6... e6 {[%clk 0:03:01.9]}
7. Qd2 {[%clk 0:03:00.4]} 7... a6 {[%clk 0:03:01.7]} 8. O-O-O {[%clk 0:03:00]}
8... h6 {[%clk 0:03:02.3]} 9. Be3 {[%clk 0:02:52.7]} 9... Bd7 {[%clk 0:03:01.5]}
10. f3 {[%clk 0:02:49.8]} 10... Be7 {[%clk 0:03:00.9]} 11. Kb1 {[%clk
0:02:42.2]} 11... b5 {[%clk 0:03:00.9]} 12. Nxc6 {[%clk 0:02:39.9]} 12... Bxc6
{[%clk 0:03:00.8]} 13. Ne2 {[%clk 0:02:40.8]} 13... Qc7 {[%clk 0:02:58.5]} 14.
Nd4 {[%clk 0:02:40.7]} 14... Bd7 {[%clk 0:02:55.3]} 15. g4 {[%clk 0:02:39.6]}
15... Rc8 {[%clk 0:02:50.5]} 16. h4 {[%clk 0:02:38.9]} 16... e5 {[%clk
0:02:44.8]} 17. Nf5 {[%clk 0:02:37]} 17... Bxf5 {[%clk 0:02:44.9]} 18. exf5
{[%clk 0:02:35]} 18... d5 {[%clk 0:02:32.2]} 19. Qg2 {[%clk 0:02:08.2]} 19... d4
{[%clk 0:02:28.1]} 20. Bc1 {[%clk 0:02:08]} 20... Nd5 {[%clk 0:02:18.6]} 21. Bd3
{[%clk 0:02:07.9]} 21... Nb4 {[%clk 0:01:57.7]} 22. Be4 {[%clk 0:01:50.5]} 22...
Qc4 {[%clk 0:01:45.6]} 23. b3 {[%clk 0:01:50.6]} 23... Qc7 {[%clk 0:01:27.5]}
24. g5 {[%clk 0:01:36]} 24... Qa5 {[%clk 0:01:25.9]} 25. a3 {[%clk 0:01:34.8]}
25... Nc6 {[%clk 0:01:11.6]} 26. f4 {[%clk 0:01:35]} 26... Bxa3 {[%clk
0:01:08.2]} 27. Bxc6+ {[%clk 0:01:34.3]} 27... Kf8 {[%clk 0:01:05.1]} 28. Bxa3+
{[%clk 0:01:31]} 28... Qxa3 {[%clk 0:01:06]} 29. fxe5 {[%clk 0:01:19.6]} 29...
Qc5 {[%clk 0:01:04.7]} 30. Bd7 {[%clk 0:01:18.1]} 1-0